[Event "13th Palmanova Festival A 2024"]
[Site "Palmanova"]
[Date "2024.12.30"]
[Round "5.8"]
[White "Kalosha, Zhiulien Oleksii"]
[Black "Gregoric, Andraz"]
[Result "1-0"]
[ECO "C54"]
[WhiteElo "2306"]
[BlackElo "2265"]
[Annotator "ChessBase"]
[PlyCount "121"]
[EventDate "2024.12.27"]
[EventCountry "ITA"]
[SourceTitle "playchess.com"]
[Source "ChessBase"]
[SourceQuality "1"]
[TimeControl "6000+30"]

1. e4 {[%emt 0:00:15]} e5 {[%emt 0:00:03]} 2. Nf3 {[%emt 0:00:13]} Nc6 {[%emt 0:00:04]} 3. Bc4 {[%emt 0:00:10]} Bc5 {[%emt 0:00:04]} 4. c3 {[%emt 0:00:27]} Nf6 {[%emt 0:00:05]} 5. d3 {[%emt 0:00:25]} d6 {[%emt 0:00:10]} 6. O-O {[%emt 0:00:58]} a5 {[%emt 0:00:15]} 7. Re1 {[%emt 0:01:44]} O-O {[%emt 0:00:10]} 8. h3 {[%emt 0:00:44]} Ba7 {[%emt 0:03:49]} 9. Nbd2 {[%emt 0:01:39]} Ne7 {[%emt 0:00:26]} 10. Nf1 {[%emt 0:02:53]} Ng6 {[%emt 0:00:09]} 11. Bb3 {[%emt 0:03:23]} h6 {[%emt 0:00:38]} 12. Ng3 {[%emt 0:02:21]} Nh7 {[%emt 0:08:24]} 13. d4 {[%emt 0:01:21]} Qf6 {[%emt 0:00:30]} 14. Nh5 {[%emt 0:03:28]} Qe7 {[%emt 0:00:37]} 15. Be3 {[%emt 0:09:17]} Ng5 {[%emt 0:02:06]} 16. Qe2 {[%emt 0:09:27]} Re8 {[%emt 0:13:55]} 17. Rad1 {[%emt 0:21:57]} exd4 {[%emt 0:16:34]} 18. Bxd4 {[%emt 0:00:31]} Nxf3+ {[%emt 0:01:43]} 19. Qxf3 {[%emt 0:00:15]} Bxd4 {[%emt 0:04:19]} 20. cxd4 {[%emt 0:00:26]} a4 {[%emt 0:02:25]} 21. Bc2 {[%emt 0:09:44]} Qg5 {[%emt 0:07:30]} 22. Ng3 {[%emt 0:00:30]} Qb5 {[%emt 0:02:26]} 23. Re2 {[%emt 0:06:26]} Qb6 {[%emt 0:09:11]} 24. a3 {[%emt 0:07:10]} c5 {[%emt 0:10:07]} 25. dxc5 {[%emt 0:04:49]} dxc5 {[%emt 0:00:12]} 26. Red2 {[%emt 0:00:20]} Be6 {[%emt 0:02:45]} 27. Nh5 {[%emt 0:01:08]} Qc7 {[%emt 0:01:19]} 28. Rd6 {[%emt 0:01:09]} f6 {[%emt 0:10:09]} 29. Qg3 {[%emt 0:04:18]} Qf7 {[%emt 0:01:09]} 30. f4 {[%emt 0:04:36]} Nf8 {[%emt 0:00:27]} 31. Qf3 {[%emt 0:01:09]} b5 {[%emt 0:01:16]} 32. Kh2 {[%emt 0:05:11]} Kh8 {[%emt 0:02:22]} 33. R1d2 {[%emt 0:04:13]} Rac8 {[%emt 0:01:23]} 34. Bd1 {[%emt 0:02:09]} Bc4 {[%emt 0:01:54]} 35. Qg4 {[%emt 0:00:56]} Rc7 {[%emt 0:00:21]} 36. Bf3 {[%emt 0:00:49]} b4 {[%emt 0:01:21]} 37. Qg3 {[%emt 0:01:18]} bxa3 {[%emt 0:00:40]} 38. bxa3 {[%emt 0:00:04]} Bb3 {[%emt 0:00:46]} 39. e5 {[%emt 0:00:58]} f5 {[%emt 0:00:28]} 40. Qh4 {[%emt 0:00:41]} Ng6 {[%emt 0:04:15]} 41. Qe1 {[%emt 0:00:00]} Nf8 {[%emt 0:00:00]} 42. Qe3 {[%emt 0:00:00]} Ne6 {[%emt 0:00:00]} 43. Ng3 {[%emt 0:00:00]} Rb8 {[%emt 0:00:00]} 44. Ne2 {[%emt 0:00:00]} Bc4 {[%emt 0:00:00]} 45. Qc3 {[%emt 0:00:00]} Bb3 {[%emt 0:00:00]} 46. Bc6 {[%emt 0:00:00]} Rbc8 {[%emt 0:00:00]} 47. Bd7 {[%emt 0:00:00]} Rb8 {[%emt 0:00:00]} 48. Qa5 {[%emt 0:00:00]} Rbb7 {[%emt 0:00:00]} 49. Bc6 {[%emt 0:00:00]} Ra7 {[%emt 0:00:00]} 50. Qb6 {[%emt 0:00:00]} Qe7 {[%emt 0:00:00]} 51. Qb5 {[%emt 0:02:20]} g6 {[%emt 0:00:00]} 52. Rd7 {[%emt 0:00:27]} Rxd7 {[%emt 0:00:00]} 53. Bxd7 {[%emt 0:00:05]} Kg7 {[%emt 0:00:00]} 54. Bxe6 {[%emt 0:02:47]} Bxe6 {[%emt 0:00:00]} 55. Rd6 {[%emt 0:00:05]} Kf7 {[%emt 0:00:46]} 56. Qxc5 {[%emt 0:00:19]} Qc7 {[%emt 0:00:09]} 57. Rc6 {[%emt 0:00:45]} Qe7 {[%emt 0:00:04]} 58. Qc3 {[%emt 0:01:06]} Bd5 {[%emt 0:00:25]} 59. Rd6 {[%emt 0:00:15]} Be4 {[%emt 0:00:53]} 60. Qg3 {[%emt 0:00:48]} g5 {[%emt 0:00:09]} 61. Rxh6 {[%emt 0:00:22]} 1-0

[Event "13th Palmanova Festival A 2024"]
[Site "Palmanova"]
[Date "2024.12.30"]
[Round "5.9"]
[White "Sepehrkhoui, Ardeshir"]
[Black "Knudsen, Simon"]
[Result "0-1"]
[ECO "B08"]
[WhiteElo "2266"]
[BlackElo "2303"]
[Annotator "RC"]
[PlyCount "50"]
[EventDate "2024.12.27"]
[EventCountry "ITA"]
[SourceTitle "playchess.com"]
[Source "ChessBase"]
[SourceQuality "1"]
[TimeControl "6000+30"]

1. d4 {[%emt 0:00:04]} g6 {[%emt 0:00:20]} 2. e4 {[%emt 0:02:48]} Bg7 {[%emt 0:00:09]} 3. Nf3 {[%emt 0:00:05]} d6 {[%emt 0:00:17]} 4. Be2 {[%emt 0:03:39]} Nf6 {[%emt 0:02:49]} 5. Nc3 {[%emt 0:00:07]} O-O {[%emt 0:00:33]} 6. O-O {[%emt 0:01:19]} a6 {[%emt 0:02:12]} 7. a4 {[%emt 0:02:10]} b6 {[%emt 0:00:10]} 8. Re1 {[%emt 0:14:06]} e6 {[%emt 0:12:29]} 9. e5 {[%emt 0:09:34]} dxe5 {[%emt 0:00:30]} 10. Nxe5 {[%emt 0:00:05]} Bb7 {[%emt 0:00:24]} 11. Bg5 {[%emt 0:08:22]} c5 {[%emt 0:14:46]} 12. Ng4 {[%emt 0:15:42]} Nbd7 {[%emt 0:05:26]} 13. dxc5 {[%emt 0:15:34]} bxc5 {[%emt 0:00:11]} 14. Qd6 {[%emt 0:04:50]} Qb8 {[%emt 0:03:54]} 15. Nh6+ {[%emt 0:05:03]} Kh8 {[%emt 0:06:02]} 16. Qd2 {[%emt 0:04:04]} Nb6 {[%emt 0:03:21]} 17. a5 {[%emt 0:00:54]} Nbd5 {[%emt 0:00:38]} 18. f3 {[%emt 0:04:22]} Nxc3 {[%emt 0:06:39]} 19. bxc3 {[%emt 0:00:10]} Qc7 {[%emt 0:00:31]} 20. Red1 {[%emt 0:04:19]} Nd5 {[%emt 0:05:28]} 21. c4 {[%emt 0:01:13]} Nc3 {[%emt 0:01:17]} 22. Ra3 {[%emt 0:01:01]} Nxd1 {[%emt 0:02:24]} 23. Qxd1 {[%emt 0:00:02]} f6 {[%emt 0:01:14]} 24. Be3 {[%emt 0:00:04]} f5 {[%emt 0:00:10]} 25. Rd3 {[%emt 0:00:13]} Bc6 {[%emt 0:02:14]} 0-1

[Event "13th Palmanova Festival A 2024"]
[Site "Palmanova"]
[Date "2024.12.30"]
[Round "5.10"]
[White "Javornik, Nik"]
[Black "Shearsby, Jude"]
[Result "1-0"]
[ECO "C17"]
[WhiteElo "2300"]
[BlackElo "2249"]
[Annotator "RC"]
[PlyCount "87"]
[EventDate "2024.12.27"]
[EventCountry "ITA"]
[SourceTitle "playchess.com"]
[Source "ChessBase"]
[SourceQuality "1"]
[TimeControl "6000+30"]

1. e4 {[%emt 0:00:20]} e6 {[%emt 0:00:05]} 2. d4 {[%emt 0:00:11]} d5 {[%emt 0:00:04]} 3. Nc3 {[%emt 0:00:08]} Bb4 {[%emt 0:00:04]} 4. e5 {[%emt 0:00:13]} c5 {[%emt 0:00:05]} 5. Bd2 {[%emt 0:00:03]} Ne7 {[%emt 0:00:18]} 6. Nb5 {[%emt 0:01:12]} Bxd2+ {[%emt 0:00:08]} 7. Qxd2 {[%emt 0:00:03]} O-O {[%emt 0:00:10]} 8. f4 {[%emt 0:01:41]} Bd7 {[%emt 0:00:05]} 9. Nf3 {[%emt 0:08:41]} Bxb5 {[%emt 0:20:19]} 10. Bxb5 {[%emt 0:00:01]} Qb6 {[%emt 0:12:55]} 11. Be2 {[%emt 0:04:34]} Qxb2 {[%emt 0:00:13]} 12. O-O {[%emt 0:00:10]} Qb6 {[%emt 0:01:00]} 13. Rab1 {[%emt 0:01:11]} Qc7 {[%emt 0:01:19]} 14. c3 {[%emt 0:02:06]} Nbc6 {[%emt 0:02:25]} 15. g4 {[%emt 0:00:18]} Rac8 {[%emt 0:09:09]} 16. Bd3 {[%emt 0:04:16]} b6 {[%emt 0:13:13]} 17. Bxh7+ {[%emt 0:23:43]} Kxh7 {[%emt 0:14:22]} 18. Ng5+ {[%emt 0:00:15]} Kg6 {[%emt 0:02:38]} 19. Qd3+ {[%emt 0:29:58]} f5 {[%emt 0:00:02]} 20. Nxe6 {[%emt 0:00:18]} Qd7 {[%emt 0:00:05]} 21. Nxf8+ {[%emt 0:00:22]} Rxf8 {[%emt 0:00:02]} 22. dxc5 {[%emt 0:01:30]} bxc5 {[%emt 0:00:22]} 23. Rb2 {[%emt 0:03:01]} Qe6 {[%emt 0:05:54]} 24. Rb5 {[%emt 0:05:28]} c4 {[%emt 0:01:56]} 25. Qc2 {[%emt 0:00:11]} Kf7 {[%emt 0:01:25]} 26. g5 {[%emt 0:00:11]} d4 {[%emt 0:05:47]} 27. Qa4 {[%emt 0:00:36]} Rd8 {[%emt 0:02:38]} 28. Rc5 {[%emt 0:01:25]} dxc3 {[%emt 0:01:58]} 29. Qxc4 {[%emt 0:00:58]} Rd2 {[%emt 0:02:00]} 30. g6+ {[%emt 0:01:21]} Nxg6 {[%emt 0:01:21]} 31. Qxe6+ {[%emt 0:00:03]} Kxe6 {[%emt 0:00:13]} 32. Rxc6+ {[%emt 0:00:03]} Kf7 {[%emt 0:00:11]} 33. Rxc3 {[%emt 0:00:11]} Rxa2 {[%emt 0:01:00]} 34. Rc7+ {[%emt 0:02:42]} Kf8 {[%emt 0:00:48]} 35. Rb1 {[%emt 0:00:15]} Kg8 {[%emt 0:00:24]} 36. Rbb7 {[%emt 0:00:42]} Nxf4 {[%emt 0:00:18]} 37. Rxg7+ {[%emt 0:00:12]} Kh8 {[%emt 0:00:20]} 38. Rh7+ {[%emt 0:00:43]} Kg8 {[%emt 0:00:03]} 39. Rhc7 {[%emt 0:00:06]} Nh3+ {[%emt 0:01:13]} 40. Kf1 {[%emt 0:02:00]} Ra1+ {[%emt 0:00:24]} 41. Kg2 {[%emt 0:00:11]} Nf4+ {[%emt 0:00:04]} 42. Kg3 {[%emt 0:00:46]} Ne6 {[%emt 0:00:22]} 43. Rc8+ {[%emt 0:00:04]} Nf8 {[%emt 0:00:09]} 44. Rbb8 {[%emt 0:00:04]} 1-0

[Event "13th Palmanova Festival A 2024"]
[Site "Palmanova"]
[Date "2024.12.30"]
[Round "5.11"]
[White "Skrbec, Leon"]
[Black "Lekic, Dusan"]
[Result "1-0"]
[ECO "A37"]
[WhiteElo "2265"]
[BlackElo "2287"]
[Annotator "ChessBase"]
[PlyCount "97"]
[EventDate "2024.12.27"]
[EventCountry "ITA"]
[SourceTitle "playchess.com"]
[Source "ChessBase"]
[SourceQuality "1"]
[TimeControl "6000+30"]

1. Nf3 {[%emt 0:01:22]} c5 {[%emt 0:00:31]} 2. c4 {[%emt 0:00:12]} Nc6 {[%emt 0:00:36]} 3. g3 {[%emt 0:00:30]} g6 {[%emt 0:01:19]} 4. Bg2 {[%emt 0:00:35]} Bg7 {[%emt 0:00:21]} 5. Nc3 {[%emt 0:00:21]} d6 {[%emt 0:02:18]} 6. O-O {[%emt 0:01:25]} e6 {[%emt 0:03:59]} 7. e3 {[%emt 0:03:36]} Nge7 {[%emt 0:00:18]} 8. b3 {[%emt 0:04:34]} O-O {[%emt 0:00:52]} 9. Bb2 {[%emt 0:00:15]} e5 {[%emt 0:04:09]} 10. d3 {[%emt 0:04:50]} h6 {[%emt 0:06:46]} 11. Qe2 {[%emt 0:03:41]} f5 {[%emt 0:10:24]} 12. Ne1 {[%emt 0:04:09]} Be6 {[%emt 0:08:32]} 13. Nc2 {[%emt 0:15:46]} d5 {[%emt 0:11:58]} 14. Rad1 {[%emt 0:03:29]} Qd7 {[%emt 0:06:11]} 15. Kh1 {[%emt 0:08:09]} d4 {[%emt 0:06:00]} 16. Na4 {[%emt 0:00:18]} b6 {[%emt 0:00:27]} 17. f4 {[%emt 0:00:56]} dxe3 {[%emt 0:14:33]} 18. fxe5 {[%emt 0:09:32]} Nd4 {[%emt 0:01:05]} 19. Bxd4 {[%emt 0:01:12]} cxd4 {[%emt 0:00:09]} 20. Nxe3 {[%emt 0:00:28]} Rad8 {[%emt 0:07:59]} 21. Nc2 {[%emt 0:01:02]} Nc6 {[%emt 0:01:22]} 22. Rde1 {[%emt 0:02:02]} g5 {[%emt 0:02:35]} 23. Qd2 {[%emt 0:00:50]} Nxe5 {[%emt 0:01:10]} 24. Nb2 {[%emt 0:01:56]} Kh8 {[%emt 0:04:42]} 25. Nb4 {[%emt 0:04:09]} Ng4 {[%emt 0:04:35]} 26. Nd1 {[%emt 0:02:49]} Qd6 {[%emt 0:01:57]} 27. Nd5 {[%emt 0:03:40]} Rd7 {[%emt 0:01:07]} 28. Qe2 {[%emt 0:03:14]} Bg8 {[%emt 0:01:23]} 29. Qd2 {[%emt 0:12:12]} Ne5 {[%emt 0:02:25]} 30. Nf2 {[%emt 0:01:39]} Qg6 {[%emt 0:00:47]} 31. Re2 {[%emt 0:00:37]} Rdf7 {[%emt 0:02:13]} 32. Qe1 {[%emt 0:02:34]} Qd6 {[%emt 0:00:23]} 33. Qd1 {[%emt 0:01:25]} Bh7 {[%emt 0:00:58]} 34. Nh3 {[%emt 0:03:16]} Bg6 {[%emt 0:00:15]} 35. Ree1 {[%emt 0:01:15]} f4 {[%emt 0:00:26]} 36. gxf4 {[%emt 0:02:05]} Nxd3 {[%emt 0:00:08]} 37. Re2 {[%emt 0:02:41]} g4 {[%emt 0:00:15]} 38. Be4 {[%emt 0:00:24]} gxh3 {[%emt 0:00:58]} 39. Qxd3 {[%emt 0:00:06]} Bh5 {[%emt 0:01:03]} 40. Ref2 {[%emt 0:00:09]} Bg4 {[%emt 0:01:09]} 41. Qg3 {[%emt 0:01:00]} h5 {[%emt 0:01:14]} 42. Bf3 {[%emt 0:02:29]} Qg6 {[%emt 0:01:27]} 43. Rg1 {[%emt 0:02:49]} Re8 {[%emt 0:00:00]} 44. Bxg4 {[%emt 0:00:00]} hxg4 {[%emt 0:00:00]} 45. Qxg4 {[%emt 0:00:00]} Qe4+ {[%emt 0:00:00]} 46. Qf3 {[%emt 0:00:00]} d3 {[%emt 0:00:00]} 47. Qxe4 {[%emt 0:00:00]} Rxe4 {[%emt 0:00:00]} 48. Rd2 {[%emt 0:00:00]} Bd4 {[%emt 0:00:00]} 49. Rgd1 {[%emt 0:00:00]} 1-0

[Event "13th Palmanova Festival A 2024"]
[Site "Palmanova"]
[Date "2024.12.30"]
[Round "5.12"]
[White "Candian, Lorenzo"]
[Black "Solomon, Kenny"]
[Result "1-0"]
[ECO "B06"]
[WhiteElo "2208"]
[BlackElo "2277"]
[Annotator "NA"]
[PlyCount "107"]
[EventDate "2024.12.27"]
[EventCountry "ITA"]
[SourceTitle "playchess.com"]
[Source "ChessBase"]
[SourceQuality "1"]
[TimeControl "6000+30"]

1. d4 {[%emt 0:09:16]} d6 {[%emt 0:00:57]} 2. e4 {[%emt 0:00:25]} g6 {[%emt 0:00:07]} 3. h4 {[%emt 0:02:51]} h5 {[%emt 0:00:31]} 4. Nc3 {[%emt 0:02:10]} c6 {[%emt 0:02:50]} 5. Be3 {[%emt 0:09:06]} Nf6 {[%emt 0:00:35]} 6. f3 {[%emt 0:00:51]} b5 {[%emt 0:01:26]} 7. a3 {[%emt 0:02:04]} Qc7 {[%emt 0:00:42]} 8. Be2 {[%emt 0:03:54]} Bg7 {[%emt 0:16:46]} 9. g4 {[%emt 0:09:57]} hxg4 {[%emt 0:01:57]} 10. fxg4 {[%emt 0:00:04]} Qd7 {[%emt 0:00:32]} 11. g5 {[%emt 0:09:40]} Ng4 {[%emt 0:12:30]} 12. Bxg4 {[%emt 0:12:08]} Qxg4 {[%emt 0:00:07]} 13. Qxg4 {[%emt 0:00:03]} Bxg4 {[%emt 0:00:10]} 14. Nge2 {[%emt 0:00:01]} Nd7 {[%emt 0:06:44]} 15. Kf2 {[%emt 0:06:36]} Nb6 {[%emt 0:14:00]} 16. b3 {[%emt 0:02:33]} a5 {[%emt 0:04:51]} 17. Kg3 {[%emt 0:11:03]} Bd7 {[%emt 0:01:29]} 18. a4 {[%emt 0:00:22]} b4 {[%emt 0:01:11]} 19. Nb1 {[%emt 0:03:22]} d5 {[%emt 0:04:54]} 20. e5 {[%emt 0:02:47]} Bf5 {[%emt 0:05:53]} 21. Nd2 {[%emt 0:00:50]} f6 {[%emt 0:03:29]} 22. h5 {[%emt 0:11:53]} gxh5 {[%emt 0:00:47]} 23. Raf1 {[%emt 0:00:51]} Bg4 {[%emt 0:01:40]} 24. exf6 {[%emt 0:01:32]} exf6 {[%emt 0:00:05]} 25. gxf6 {[%emt 0:00:02]} Bf8 {[%emt 0:09:26]} 26. Bg5 {[%emt 0:01:59]} Kf7 {[%emt 0:06:37]} 27. Nf4 {[%emt 0:02:40]} Bd6 {[%emt 0:02:45]} 28. Nf3 {[%emt 0:00:26]} Rae8 {[%emt 0:02:00]} 29. Re1 {[%emt 0:00:13]} Rxe1 {[%emt 0:02:41]} 30. Rxe1 {[%emt 0:00:10]} Rg8 {[%emt 0:00:12]} 31. Ne5+ {[%emt 0:00:45]} Bxe5 {[%emt 0:00:22]} 32. Rxe5 {[%emt 0:00:02]} Nc8 {[%emt 0:00:45]} 33. Kh4 {[%emt 0:00:40]} Rh8 {[%emt 0:04:22]} 34. Re1 {[%emt 0:01:26]} Bf5 {[%emt 0:00:22]} 35. Re5 {[%emt 0:00:49]} Bg4 {[%emt 0:01:07]} 36. Re3 {[%emt 0:00:31]} Bf5 {[%emt 0:00:58]} 37. c3 {[%emt 0:04:58]} bxc3 {[%emt 0:01:58]} 38. Rxc3 {[%emt 0:00:00]} Bd7 {[%emt 0:00:15]} 39. Re3 {[%emt 0:00:00]} Bf5 {[%emt 0:00:22]} 40. Re1 {[%emt 0:00:11]} Be4 {[%emt 0:01:30]} 41. Rc1 {[%emt 0:00:47]} Na7 {[%emt 0:00:00]} 42. Rc5 {[%emt 0:00:00]} Rb8 {[%emt 0:00:00]} 43. Rxa5 {[%emt 0:00:00]} Rb7 {[%emt 0:00:00]} 44. Kxh5 {[%emt 0:00:00]} Nc8 {[%emt 0:00:00]} 45. Rc5 {[%emt 0:00:00]} Na7 {[%emt 0:00:00]} 46. Rc3 {[%emt 0:00:00]} Rb8 {[%emt 0:00:00]} 47. Nd3 {[%emt 0:00:00]} Bxd3 {[%emt 0:00:00]} 48. Rxd3 {[%emt 0:00:00]} Re8 {[%emt 0:00:00]} 49. Kg4 {[%emt 0:00:00]} Nc8 {[%emt 0:00:00]} 50. Rc3 {[%emt 0:00:00]} Re4+ {[%emt 0:00:00]} 51. Bf4 {[%emt 0:00:00]} Nd6 {[%emt 0:00:00]} 52. Rxc6 {[%emt 0:00:00]} Ne8 {[%emt 0:00:00]} 53. Kf5 {[%emt 0:00:00]} Rxd4 {[%emt 0:00:00]} 54. Rb6 {[%emt 0:00:00]} 1-0

[Event "13th Palmanova Festival A 2024"]
[Site "Palmanova"]
[Date "2024.12.30"]
[Round "5.13"]
[White "Casadio, Niccolo`"]
[Black "Rossi, Gabriele Valerio"]
[Result "1-0"]
[ECO "A36"]
[WhiteElo "2275"]
[BlackElo "2007"]
[Annotator "RC"]
[PlyCount "89"]
[EventDate "2024.12.27"]
[EventCountry "ITA"]
[SourceTitle "playchess.com"]
[Source "ChessBase"]
[SourceQuality "1"]
[TimeControl "6000+30"]

1. c4 {[%emt 0:03:51]} Nf6 {[%emt 0:00:05]} 2. Nc3 {[%emt 0:00:10]} g6 {[%emt 0:00:27]} 3. g3 {[%emt 0:00:09]} Bg7 {[%emt 0:00:03]} 4. Bg2 {[%emt 0:00:06]} O-O {[%emt 0:00:06]} 5. e4 {[%emt 0:00:07]} c5 {[%emt 0:02:04]} 6. Nge2 {[%emt 0:02:04]} Nc6 {[%emt 0:00:22]} 7. O-O {[%emt 0:00:16]} d6 {[%emt 0:00:02]} 8. d3 {[%emt 0:00:14]} Ne8 {[%emt 0:06:51]} 9. Be3 {[%emt 0:00:24]} Nd4 {[%emt 0:00:45]} 10. Rb1 {[%emt 0:03:10]} Nc7 {[%emt 0:16:13]} 11. b4 {[%emt 0:02:52]} b6 {[%emt 0:09:35]} 12. Qc1 {[%emt 0:08:33]} Bg4 {[%emt 0:05:49]} 13. f3 {[%emt 0:01:19]} Bd7 {[%emt 0:00:02]} 14. Bh6 {[%emt 0:01:24]} Rb8 {[%emt 0:22:05]} 15. Bxg7 {[%emt 0:01:02]} Kxg7 {[%emt 0:01:43]} 16. Nxd4 {[%emt 0:02:52]} cxd4 {[%emt 0:00:02]} 17. Ne2 {[%emt 0:00:46]} e5 {[%emt 0:00:19]} 18. Qa3 {[%emt 0:00:57]} Ra8 {[%emt 0:03:22]} 19. f4 {[%emt 0:02:04]} Be8 {[%emt 0:12:44]} 20. f5 {[%emt 0:02:15]} f6 {[%emt 0:02:16]} 21. g4 {[%emt 0:04:43]} g5 {[%emt 0:00:58]} 22. h4 {[%emt 0:00:18]} h6 {[%emt 0:00:12]} 23. Kf2 {[%emt 0:00:32]} Rh8 {[%emt 0:00:25]} 24. Rh1 {[%emt 0:00:17]} Qd7 {[%emt 0:19:39]} 25. Rh3 {[%emt 0:03:28]} Qa4 {[%emt 0:01:03]} 26. Qb2 {[%emt 0:01:14]} b5 {[%emt 0:01:11]} 27. Rbh1 {[%emt 0:03:02]} Bf7 {[%emt 0:00:04]} 28. a3 {[%emt 0:05:53]} a5 {[%emt 0:01:20]} 29. Nxd4 {[%emt 0:07:57]} axb4 {[%emt 0:03:34]} 30. hxg5 {[%emt 0:00:45]} exd4 {[%emt 0:01:30]} 31. Qxd4 {[%emt 0:01:53]} Qa7 {[%emt 0:00:15]} 32. gxf6+ {[%emt 0:00:16]} Kg8 {[%emt 0:00:38]} 33. Qxa7 {[%emt 0:00:10]} Rxa7 {[%emt 0:00:01]} 34. axb4 {[%emt 0:00:14]} bxc4 {[%emt 0:00:32]} 35. dxc4 {[%emt 0:00:32]} Ra2+ {[%emt 0:00:07]} 36. Kg3 {[%emt 0:00:06]} Bxc4 {[%emt 0:00:19]} 37. Rc1 {[%emt 0:00:13]} d5 {[%emt 0:00:27]} 38. exd5 {[%emt 0:00:58]} Bxd5 {[%emt 0:00:01]} 39. Bxd5+ {[%emt 0:00:23]} Nxd5 {[%emt 0:00:01]} 40. Rc8+ {[%emt 0:00:08]} Kh7 {[%emt 0:00:04]} 41. Rxh6+ {[%emt 0:00:13]} Kxh6 {[%emt 0:00:04]} 42. Rxh8+ {[%emt 0:00:03]} Kg5 {[%emt 0:00:05]} 43. f7 {[%emt 0:00:13]} Ra3+ {[%emt 0:01:33]} 44. Kf2 {[%emt 0:00:21]} Ra2+ {[%emt 0:01:43]} 45. Ke1 {[%emt 0:00:11]} 1-0

[Event "13th Palmanova Festival A 2024"]
[Site "Palmanova"]
[Date "2024.12.30"]
[Round "5.14"]
[White "Capaliku, Aleks"]
[Black "Mazzini, Mauro"]
[Result "1/2-1/2"]
[ECO "A47"]
[WhiteElo "2020"]
[BlackElo "2069"]
[Annotator "NA RC"]
[PlyCount "29"]
[EventDate "2024.12.27"]
[EventCountry "ITA"]
[SourceTitle "playchess.com"]
[Source "ChessBase"]
[SourceQuality "1"]
[TimeControl "6000+30"]

1. d4 {[%emt 0:00:12]} Nf6 {[%emt 0:00:05]} 2. Bf4 {[%emt 0:00:06]} b6 {[%emt 0:00:10]} 3. e3 {[%emt 0:00:14]} Bb7 {[%emt 0:00:25]} 4. h3 {[%emt 0:00:16]} e6 {[%emt 0:01:18]} 5. Nf3 {[%emt 0:00:15]} Be7 {[%emt 0:02:57]} 6. Bd3 {[%emt 0:04:50]} c5 {[%emt 0:08:27]} 7. c3 {[%emt 0:01:27]} cxd4 {[%emt 0:00:16]} 8. cxd4 {[%emt 0:01:18]} Nc6 {[%emt 0:00:55]} 9. Nc3 {[%emt 0:00:17]} a6 {[%emt 0:00:38]} 10. O-O {[%emt 0:00:26]} O-O {[%emt 0:00:26]} 11. Rc1 {[%emt 0:00:40]} d6 {[%emt 0:05:29]} 12. e4 {[%emt 0:03:21]} Rc8 {[%emt 0:14:25]} 13. a3 {[%emt 0:07:40]} b5 {[%emt 0:05:46]} 14. b4 {[%emt 0:03:15]} Nb8 {[%emt 0:08:30]} 15. Qe2 {[%emt 0:09:11]} 1/2-1/2